bitfinex/quotes_SOLUSD_20241010
["timestamp","ask_amount","ask_price","bid_price","bid_amount"]
[1728597276143,24.027864,138.3,138.23,30.0]
[1728597277232,31.258464,138.3,138.23,30.0]
[1728597277848,24.027864,138.3,138.24,1.44650711]
[1728597278147,24.027864,138.3,138.24,30.0]
[1728597278349,24.027864,138.3,138.24,44.25301626]
[1728597281421,24.027864,138.3,138.24,30.0]
[1728597284579,24.027864,138.28,138.24,30.0]
[1728597286747,0.25098,138.28,138.24,30.0]
[1728597287133,24.027864,138.28,138.24,30.0]
[1728597291162,31.259564,138.28,138.24,30.0]
[1728597293063,31.259564,138.28,138.21,14.25301626]
[1728597296175,31.259564,138.28,138.22,30.0]
[1728597298064,24.027864,138.28,138.22,30.0]
[1728597298947,24.027864,138.28,138.23,1.44664133]
[1728597299265,7.2306,138.3,138.24,30.0]
[1728597300147,7.2301,138.32,138.24,30.0]
[1728597300352,7.2301,138.32,138.25,1.44631385]
[1728597300670,7.2301,138.32,138.25,31.44631385]
[1728597301259,0.12549,138.31,138.25,31.44631385]
[1728597301673,24.027864,138.31,138.25,1.44631385]
[1728597304374,0.25098,138.31,138.25,15.69933011]
[1728597304572,0.25098,138.31,138.25,45.69933011]
[1728597305368,24.027864,138.32,138.25,45.69933011]
[1728597308553,24.027864,138.32,138.25,31.44631385]
[1728597308749,24.027864,138.32,138.25,30.0]
[1728597308971,24.027864,138.32,138.26,1.44614777]
[1728597309164,24.027864,138.32,138.26,31.44614777]
[1728597309763,0.25098,138.32,138.26,30.0]
[1728597310879,0.25098,138.32,138.27,1.44610581]
[1728597311081,0.25098,138.32,138.27,31.44610581]
[1728597312585,0.25098,138.32,138.27,30.0]
[1728597313257,0.25098,138.32,138.24,30.57421626]
[1728597314375,0.12549,138.32,138.24,30.57421626]
[1728597315091,24.027864,138.33,138.24,30.57421626]
[1728597316287,24.027864,138.33,138.26,30.0]
[1728597323268,24.027864,138.33,138.25,14.25301626]
[1728597324795,24.027864,138.33,138.27,30.0]
[1728597325695,31.256964,138.33,138.27,30.0]
[1728597331201,24.027864,138.33,138.28,16.66455973]
[1728597331387,24.027864,138.33,138.28,46.66455973]
[1728597334704,0.25098,138.33,138.28,46.66455973]
[1728597334899,0.12549,138.33,138.28,46.66455973]
[1728597335093,6.214,138.36,138.28,46.66455973]
[1728597335094,24.027864,138.34,138.28,46.66455973]
[1728597335305,0.12549,138.34,138.28,46.66455973]
[1728597336107,0.12549,138.34,138.28,45.2185]
[1728597336291,0.12549,138.34,138.29,1.44591387]
[1728597336495,0.12549,138.34,138.29,31.44591387]
[1728597336708,0.25098,138.34,138.29,31.44591387]
[1728597340217,24.027864,138.35,138.29,31.44591387]
[1728597340505,0.8481903,138.39,138.3,1.44574737]
[1728597340707,7.2265,138.38,138.3,31.44574737]
[1728597340907,0.8481903,138.39,138.3,1.44574737]
[1728597341086,7.2265,138.38,138.31,1.44564711]
[1728597341410,7.2265,138.38,138.28,15.2185]
[1728597341411,7.2265,138.38,138.32,1.44564629]
[1728597341609,0.25098,138.37,138.29,1.44564621]
[1728597341796,24.027864,138.37,138.29,1.44564621]
[1728597342179,0.25098,138.37,138.29,1.44564621]
[1728597344303,0.25098,138.37,138.28,15.2185]
[1728597344501,0.25098,138.35,138.3,30.0]
[1728597345007,24.027864,138.36,138.3,30.0]
[1728597348309,0.25098,138.36,138.3,30.0]
[1728597349585,0.8481903,138.39,138.3,30.0]
[1728597349790,7.2267,138.38,138.3,30.0]
[1728597351001,24.027864,138.37,138.3,30.0]
[1728597352916,7.47798,138.37,138.3,30.0]
[1728597353613,7.47798,138.37,138.28,15.2185]
[1728597354316,7.47798,138.37,138.28,19.23893582]
[1728597354696,7.47798,138.37,138.28,15.2185]
[1728597354896,0.25098,138.37,138.28,15.2185]
[1728597355724,0.12549,138.37,138.28,15.2185]
[1728597356399,0.12549,138.37,138.29,1.44562487]
[1728597356604,0.25098,138.37,138.3,30.0]
[1728597356807,0.25098,138.37,138.31,1.44556479]
[1728597357597,0.25098,138.37,138.32,30.0]
[1728597357913,0.25098,138.37,138.33,1.44557947]
[1728597359008,0.25098,138.37,138.29,1.4455757]
[1728597359209,0.25098,138.37,138.3,30.0]
[1728597359415,0.12549,138.37,138.31,1.44557491]
[1728597359645,0.8481903,138.39,138.32,16.0222]
[1728597360112,0.8481903,138.39,138.33,31.44548583]
[1728597360699,0.8481903,138.39,138.33,30.0]
[1728597361323,0.8481903,138.39,138.32,16.0222]
[1728597362096,0.8481903,138.39,138.33,1.44535654]
[1728597362822,0.8481903,138.39,138.32,16.0222]
[1728597363323,0.8481903,138.39,138.33,1.44539167]
[1728597364101,0.8481903,138.39,138.32,16.0222]
[1728597364296,0.8481903,138.39,138.33,30.0]
[1728597364816,0.8481903,138.39,138.34,1.44521572]
[1728597365326,0.8481903,138.39,138.34,30.0]
[1728597365620,0.8481903,138.39,138.35,16.92467161]
[1728597366015,0.8481903,138.39,138.36,6.2836]
[1728597366204,0.8481903,138.39,138.37,1.44507174]
[1728597367149,0.8481903,138.39,138.37,31.44507174]
[1728597368325,0.8481903,138.39,138.37,1.44507174]
[1728597369198,0.8481903,138.39,138.37,31.44507174]
[1728597370217,0.8481903,138.39,138.37,30.0]
[1728597370522,6.461,138.5,138.39,23.902374]
[1728597370732,6.461,138.5,138.4,1.44444815]
[1728597371108,13.6812,138.5,138.41,1.44448937]
[1728597371420,0.8481903,138.52,138.42,22.73782595]
[1728597371815,0.8481903,138.52,138.42,51.2933]
[1728597372019,0.8481903,138.52,138.43,1.44420679]
[1728597372328,0.8481903,138.52,138.44,1.44418658]
[1728597372505,0.8481903,138.52,138.43,7.10624857]
[1728597372700,0.8481903,138.52,138.44,30.0]
[1728597372903,0.8481903,138.52,138.45,1.44413642]
[1728597373112,0.8481903,138.52,138.44,30.0]
[1728597373311,0.8481903,138.52,138.45,1.44411234]
[1728597373527,0.8481903,138.52,138.44,30.0]
[1728597374312,0.8481903,138.52,138.43,23.902374]
[1728597376130,0.8481903,138.52,138.44,1.44397532]
[1728597376308,0.8481903,138.52,138.43,31.0097057]
[1728597376753,0.25098,138.51,138.43,7.1073317]
[1728597377234,0.25098,138.51,138.44,30.0]
[1728597378322,0.12549,138.51,138.44,30.0]
[1728597379035,0.25098,138.51,138.44,30.0]
[1728597379735,0.25098,138.51,138.45,1.44425558]
[1728597379924,0.25098,138.51,138.45,30.0]
[1728597380239,0.8481903,138.52,138.45,30.0]
[1728597380412,0.25098,138.51,138.45,30.0]
[1728597381033,7.47078,138.51,138.45,30.0]
[1728597381717,7.47078,138.51,138.44,30.0]
[1728597382042,0.12549,138.49,138.44,30.0]
[1728597382816,0.12549,138.49,138.43,7.1073317]
[1728597383035,0.12549,138.49,138.44,1.44443988]
[1728597383242,0.12549,138.49,138.43,7.1073317]
[1728597384340,7.2208,138.49,138.43,7.1073317]
[1728597384549,23.902374,138.51,138.43,7.1073317]
[1728597384841,0.12549,138.51,138.44,1.44447305]
[1728597385010,0.8481903,138.52,138.43,7.1073317]
[1728597385213,0.8481903,138.52,138.44,1.4440618]
[1728597385430,0.8481903,138.52,138.43,7.1073317]
[1728597385619,0.8481903,138.52,138.44,1.44403067]
[1728597385819,0.8481903,138.52,138.45,30.0]
[1728597387737,0.8481903,138.52,138.47,15.3568]
[1728597388030,0.8481903,138.52,138.48,1.44402948]
[1728597390334,0.8481903,138.52,138.47,15.3568]
[1728597395243,0.8481903,138.52,138.48,31.44376118]
[1728597400526,0.8481903,138.52,138.48,30.0]
[1728597401343,0.8481903,138.52,138.49,16.4963]
[1728597401528,0.8481903,138.52,138.5,6.3356]
[1728597402520,0.8481903,138.52,138.5,36.3356]
[1728597404057,0.8481903,138.52,138.5,30.0]
[1728597407541,0.8481903,138.52,138.5,31.44360737]
[1728597407745,0.8481903,138.52,138.5,30.0]
[1728597409042,0.8481903,138.52,138.5,31.44360701]
[1728597410119,0.8481903,138.52,138.5,30.0]
[1728597415355,0.8481903,138.52,138.49,16.4963]
[1728597417954,0.8481903,138.52,138.5,1.44378127]
[1728597418248,0.8481903,138.52,138.5,30.0]
[1728597420433,0.8481903,138.52,138.51,1.44378108]
[1728597420747,0.8481903,138.52,138.49,16.4963]
[1728597421244,0.8481903,138.52,138.5,1.44364801]
[1728597421650,0.8481903,138.52,138.49,16.4963]
[1728597423460,0.8481903,138.52,138.5,1.44364834]
[1728597423634,0.8481903,138.52,138.49,16.4963]
[1728597423832,0.8481903,138.52,138.5,1.44364634]
[1728597424959,0.8481903,138.52,138.49,16.4963]
[1728597424960,0.8481903,138.52,138.51,30.0]
[1728597434356,0.8481903,138.52,138.51,29.5]
[1728597439264,0.8481903,138.52,138.51,29.0]
[1728597443647,0.8481903,138.52,138.48,7.53833268]
[1728597443869,0.8481903,138.52,138.49,30.0]
[1728597444166,0.8481903,138.52,138.48,7.53833268]
[1728597445157,0.8481903,138.52,138.49,30.0]
[1728597445640,0.8481903,138.52,138.5,1.44383015]
[1728597445841,0.8481903,138.52,138.49,30.0]
[1728597446763,0.8481903,138.52,138.5,1.44372865]
[1728597447445,0.8481903,138.52,138.49,30.0]
[1728597448760,0.3481903,138.52,138.49,30.0]
[1728597448964,0.3481903,138.52,138.5,1.4436541]
[1728597449167,0.3481903,138.52,138.51,30.0]
[1728597461778,0.3481903,138.52,138.48,24.16908563]
[1728597462097,0.3481903,138.52,138.49,30.0]
[1728597463075,0.3481903,138.52,138.46,16.79027536]
[1728597463280,0.3481903,138.52,138.47,30.0]
[1728597464575,0.3481903,138.52,138.46,7.54003216]
[1728597464897,0.3481903,138.52,138.45,1.25510255]
[1728597465209,7.5673903,138.52,138.46,30.0]
[1728597467893,7.5673903,138.52,138.45,7.54108846]
[1728597468295,7.34519,138.51,138.45,7.54108846]
[1728597469382,20.9203,138.5,138.45,7.54108846]
[1728597469583,20.9203,138.5,138.41,15.192]
[1728597469782,20.9203,138.5,138.42,30.0]
[1728597469983,0.12549,138.49,138.42,30.0]
[1728597470410,13.7001,138.5,138.43,1.44443934]
[1728597470611,13.7001,138.5,138.42,39.2502432]
[1728597471104,13.7001,138.5,138.42,30.0]
[1728597472911,0.12549,138.49,138.43,1.44436269]
[1728597473278,13.7001,138.5,138.43,1.44436269]
[1728597473477,13.7001,138.5,138.42,30.0]
[1728597474510,20.9204,138.5,138.42,30.0]
[1728597474713,13.7001,138.5,138.43,1.44441534]
[1728597474888,13.7001,138.5,138.44,30.0]
[1728597475297,0.12549,138.51,138.44,30.0]
[1728597475485,0.3481903,138.52,138.45,1.44416806]
[1728597475808,0.3481903,138.52,138.45,5.44221579]
[1728597476012,0.3481903,138.52,138.45,3.99804773]
[1728597476211,0.3481903,138.52,138.46,17.76835254]
[1728597476585,0.3481903,138.52,138.46,21.76640027]
[1728597476907,0.3481903,138.52,138.46,17.76835254]
[1728597477116,0.3481903,138.52,138.48,6.0155]
[1728597477290,0.3481903,138.52,138.48,40.01354773]
[1728597477496,0.3481903,138.52,138.49,3.99804773]
[1728597477705,0.3481903,138.52,138.5,15.0046]
[1728597478012,0.3481903,138.52,138.51,1.44345538]
[1728597478808,0.3481903,138.52,138.51,31.44345538]
[1728597479015,0.3481903,138.52,138.51,35.44150311]
[1728597480113,0.3481903,138.52,138.51,33.99804773]
[1728597480819,0.3481903,138.52,138.51,30.0]
[1728597481015,0.3481903,138.52,138.51,35.43613003]
[1728597481516,0.3481903,138.52,138.51,44.68637323]
[1728597481702,0.3481903,138.52,138.51,43.24297873]
[1728597481902,0.3481903,138.52,138.51,13.24297873]
[1728597482205,0.3481903,138.52,138.51,14.6861552]
[1728597482605,0.3481903,138.52,138.51,13.36846873]
[1728597482795,0.3481903,138.52,138.51,67.14535273]
[1728597483514,0.3481903,138.52,138.51,63.1526172]
[1728597483691,0.3481903,138.52,138.51,39.3757332]
[1728597483897,0.3481903,138.52,138.51,3.98790262]
[1728597484325,0.3481903,138.52,138.51,5.43115503]
[1728597484514,0.3481903,138.52,138.51,38.58377223]
[1728597484695,6.4694,138.62,138.52,23.902374]
[1728597484895,6.4694,138.62,138.53,7.52537975]
[1728597485095,6.4694,138.62,138.53,11.51328237]
[1728597485519,14.8694,138.65,138.54,16.1235]
[1728597485718,7.657,138.65,138.55,1.44293659]
[1728597485927,7.657,138.65,138.55,5.43083921]
[1728597486219,7.657,138.65,138.55,1.44293659]
[1728597486826,7.657,138.65,138.55,31.44293659]
[1728597488111,7.657,138.65,138.56,3.9792897]
[1728597488311,7.657,138.65,138.57,1.44270458]
[1728597488615,7.657,138.65,138.56,30.0]
[1728597489229,7.1130903,138.66,138.57,1.44255984]
[1728597489428,7.1130903,138.66,138.57,35.41600441]
[1728597489725,7.1130903,138.66,138.57,30.0]
[1728597490221,7.1130903,138.66,138.58,1.44265581]
[1728597490420,7.1130903,138.66,138.58,30.0]
[1728597491801,0.8481903,138.66,138.59,16.85645511]
[1728597492119,0.8481903,138.66,138.59,45.4139]
[1728597495315,0.8481903,138.66,138.59,15.4139]
[1728597498324,0.8481903,138.66,138.59,45.4139]
[1728597503614,0.8481903,138.66,138.59,15.4139]
[1728597504818,0.8481903,138.66,138.59,45.4139]
[1728597515516,0.8481903,138.66,138.59,15.4139]
[1728597518550,0.8481903,138.66,138.59,45.4139]
[1728597518747,8.0600903,138.66,138.59,45.4139]
[1728597519648,31.240564,138.65,138.59,30.0]
[1728597520734,24.027864,138.65,138.59,30.0]
[1728597520941,7.2131,138.64,138.59,30.0]
[1728597522325,7.2135,138.63,138.59,30.0]
[1728597522527,7.657,138.64,138.59,30.0]
[1728597522948,7.2135,138.63,138.59,30.0]
[1728597523255,7.2135,138.63,138.57,12.65530398]
[1728597523430,7.2135,138.63,138.58,30.0]
[1728597524246,7.2135,138.63,138.57,12.65530398]
[1728597524429,7.2135,138.63,138.57,16.64933978]
[1728597526137,24.027864,138.63,138.57,12.65530398]
[1728597526329,7.214,138.62,138.57,16.6518988]
[1728597526638,7.214,138.62,138.57,16.65239321]
[1728597527035,7.214,138.62,138.57,3.99708923]
[1728597528254,7.214,138.62,138.56,19.63448923]
[1728597529641,0.12549,138.61,138.56,15.6374]
[1728597529845,0.12549,138.61,138.56,19.6373227]
[1728597530150,23.902374,138.61,138.56,19.6373227]
[1728597530443,23.902374,138.61,138.55,7.53305316]
[1728597530444,23.902374,138.61,138.55,11.53297586]
[1728597530662,31.116874,138.61,138.56,30.0]
[1728597530948,23.902374,138.59,138.56,30.0]
[1728597531146,23.902374,138.59,138.52,23.75082274]
[1728597531454,23.902374,138.59,138.53,4.00112337]
[1728597531743,23.902374,138.59,138.54,30.0]
[1728597531947,31.117874,138.59,138.54,30.0]
[1728597534729,0.12549,138.59,138.54,30.0]
[1728597535648,30.992884,138.58,138.52,16.2141]
[1728597535856,0.25098,138.57,138.53,30.0]
[1728597536160,0.25098,138.57,138.46,17.0610236]
[1728597536161,23.776884,138.54,138.46,17.0610236]
[1728597536358,0.25098,138.53,138.46,7.8107804]
[1728597536528,23.776884,138.52,138.46,7.8107804]
[1728597536726,23.776884,138.52,138.47,30.0]
[1728597537163,30.996084,138.52,138.47,30.0]
[1728597537330,23.776884,138.5,138.47,30.0]
[1728597537946,23.776884,138.5,138.46,30.0]
[1728597538665,23.776884,138.5,138.42,22.8594]
[1728597538828,23.776884,138.5,138.43,30.0]
[1728597539223,30.997184,138.5,138.43,30.0]
[1728597539452,23.776884,138.49,138.43,30.0]
[1728597541553,23.776884,138.49,138.44,1.44447217]
[1728597541855,23.776884,138.5,138.44,1.44447217]
[1728597542259,23.902374,138.51,138.44,1.44447217]
[1728597542461,23.902374,138.51,138.43,39.2502432]
[1728597543137,7.2187,138.53,138.43,39.2502432]
[1728597543336,14.3065,138.57,138.43,39.2502432]
[1728597543740,14.3065,138.57,138.44,1.44424629]
[1728597543947,14.3065,138.57,138.45,30.0]
[1728597544151,7.2182,138.54,138.46,1.44415238]
[1728597544453,24.027864,138.53,138.45,30.0]
[1728597544649,31.246464,138.53,138.45,30.0]
[1728597544848,31.246464,138.53,138.44,6.2329]
[1728597545635,24.027864,138.53,138.44,6.2329]
[1728597545834,24.027864,138.53,138.45,30.0]
[1728597547240,23.776884,138.48,138.42,16.4312]
[1728597547441,0.12549,138.47,138.42,16.4312]
[1728597547640,23.776884,138.48,138.42,16.4312]
[1728597550463,30.998284,138.48,138.42,16.4312]
[1728597552436,23.776884,138.48,138.42,16.4312]
[1728597552674,23.902374,138.49,138.42,16.4312]
[1728597553744,23.902374,138.49,138.43,30.0]
[1728597554059,23.776884,138.5,138.43,30.0]
[1728597554455,0.12549,138.49,138.43,30.0]
[1728597555664,0.12549,138.5,138.44,1.44432617]
[1728597555843,0.12549,138.5,138.43,6.5599]
[1728597556851,7.2195,138.52,138.44,1.44424052]
[1728597556852,23.902374,138.52,138.44,1.44424052]
[1728597557156,0.12549,138.51,138.43,6.5599]
[1728597557361,23.902374,138.52,138.43,6.5599]
[1728597558657,23.902374,138.52,138.45,30.0]
[1728597562447,23.902374,138.52,138.43,6.5599]
[1728597564442,23.776884,138.52,138.43,6.5599]
[1728597564648,23.776884,138.54,138.45,15.0042]
[1728597564862,23.776884,138.55,138.46,1.44387303]
[1728597565062,7.2166,138.57,138.46,1.44387303]
[1728597565439,7.2166,138.57,138.46,31.44387303]
[1728597565843,0.8481903,138.66,138.51,0.25098]
[1728597566054,0.8481903,138.66,138.5,22.3153]
[1728597566055,0.8481903,138.66,138.53,0.25098]
[1728597566261,8.0600903,138.66,138.54,1.44288203]
[1728597566455,0.8481903,138.66,138.54,31.44288203]
[1728597566672,0.8481903,138.66,138.57,15.9546]
[1728597566878,0.8481903,138.66,138.58,1.44272811]
[1728597567672,0.8481903,138.66,138.58,31.44272811]
[1728597568467,0.8481903,138.66,138.59,30.0]
[1728597568866,0.8481903,138.66,138.6,1.44272736]
[1728597569566,23.776884,138.65,138.61,30.0]
[1728597571462,0.8481903,138.66,138.62,31.44272767]
[1728597571772,0.8481903,138.66,138.63,1.44246779]
[1728597572476,0.8481903,138.66,138.63,30.0]
[1728597573671,0.8481903,138.66,138.64,30.0]
[1728597578766,0.8481903,138.66,138.65,1.44229339]
[1728597579073,0.8481903,138.66,138.65,31.44229339]
[1728597579786,0.8481903,138.66,138.65,30.0]
[1728597603093,0.8481903,138.66,138.65,43.99688455]
[1728597603797,13.3738,138.77,138.66,15.5668]
[1728597603994,13.3738,138.77,138.67,1.44171415]
[1728597604210,13.3738,138.77,138.67,15.4385987]
[1728597604376,13.3738,138.77,138.67,1.44171415]
[1728597604573,7.2068,138.76,138.67,1.44171415]
[1728597604797,7.2068,138.76,138.66,59.56368455]
[1728597604997,23.776884,138.75,138.66,29.56368455]
[1728597605307,23.776884,138.75,138.67,1.44171631]
[1728597605484,7.2079,138.74,138.67,1.44171631]
[1728597605689,23.776884,138.72,138.67,30.0]
[1728597606383,23.776884,138.73,138.68,1.44201568]
[1728597606790,23.776884,138.73,138.64,1.44201642]
[1728597606997,30.985084,138.73,138.64,1.44201642]
[1728597607327,30.985084,138.73,138.64,15.43890097]
[1728597607500,30.985084,138.73,138.64,13.99688455]
[1728597608199,7.33429,138.72,138.64,13.99688455]
[1728597608399,23.776884,138.71,138.64,13.99688455]
[1728597608582,23.776884,138.71,138.63,16.356]
[1728597608783,23.776884,138.71,138.64,30.0]
[1728597608990,23.776884,138.71,138.63,16.356]
[1728597609182,7.2093,138.71,138.63,16.356]
[1728597609386,7.2109,138.68,138.6,15.531]
[1728597609898,7.2109,138.68,138.64,30.0]
[1728597610097,23.776884,138.66,138.64,30.0]
[1728597610303,31.114774,138.65,138.64,30.0]
[1728597610491,31.240264,138.65,138.64,30.0]
[1728597610903,24.027864,138.65,138.56,22.79233476]
[1728597611084,7.2135,138.63,138.56,22.79233476]
[1728597611283,23.776884,138.62,138.56,22.79233476]
[1728597611501,23.776884,138.6,138.56,7.53503476]
[1728597611707,23.776884,138.6,138.53,30.08408455]
[1728597612000,0.12549,138.64,138.57,13.99688455]
[1728597612311,7.33879,138.64,138.57,13.99688455]
[1728597612486,23.902374,138.63,138.58,1.44300004]
[1728597612895,23.902374,138.63,138.57,13.99688455]
[1728597613086,23.902374,138.63,138.53,16.0872]
[1728597613298,23.902374,138.63,138.54,13.99688455]
[1728597613612,23.902374,138.61,138.54,13.99688455]
[1728597614496,31.116974,138.61,138.54,13.99688455]
[1728597614703,23.902374,138.61,138.54,13.99688455]
[1728597615008,31.117074,138.61,138.53,30.08408455]
[1728597616492,23.776884,138.59,138.53,16.0872]
[1728597616886,23.776884,138.6,138.53,16.0872]
[1728597617091,23.776884,138.6,138.54,1.44332929]
[1728597617501,23.776884,138.6,138.53,16.0872]
[1728597619601,23.776884,138.6,138.54,1.44333038]
[1728597620293,23.776884,138.6,138.54,1.44332988]
[1728597620621,23.776884,138.6,138.53,16.0872]
[1728597621504,23.776884,138.6,138.54,1.44333156]
[1728597621708,23.902374,138.61,138.54,1.44333156]
[1728597621902,23.902374,138.61,138.53,16.0872]
[1728597623713,31.116774,138.61,138.53,16.0872]
[1728597624615,30.992584,138.59,138.53,16.0872]
[1728597625005,7.34159,138.58,138.52,7.5367087]
[1728597625320,7.34159,138.58,138.49,15.9709]
[1728597625321,7.2172,138.56,138.49,15.9709]
[1728597625529,7.2172,138.56,138.49,23.50951688]
[1728597625822,23.776884,138.56,138.49,23.50951688]
[1728597627023,0.12549,138.55,138.49,23.50951688]
[1728597627231,23.776884,138.56,138.5,1.44383057]
[1728597628621,23.776884,138.56,138.49,23.50951688]
[1728597629034,30.993984,138.56,138.49,23.50951688]
[1728597630333,30.993984,138.56,138.49,7.53861688]
[1728597630334,0.12549,138.55,138.49,7.53861688]
[1728597630839,0.12549,138.55,138.5,1.44395081]
[1728597632128,6.103,138.6,138.5,23.34164238]
[1728597632514,7.2155,138.59,138.5,23.34164238]
[1728597632716,6.103,138.6,138.51,15.697]
[1728597632913,6.103,138.6,138.52,1.44348173]
[1728597633120,13.3183,138.6,138.52,1.44348173]
[1728597633932,37.31386303,138.67,138.52,21.89779285]
[1728597633933,7.2144,138.62,138.52,21.89779285]
[1728597634153,7.2144,138.62,138.53,1.4433766]
[1728597634642,7.2136,138.63,138.53,1.4433766]
[1728597635526,7.2136,138.63,138.52,21.89779285]
[1728597635927,24.027864,138.62,138.52,21.89779285]
[1728597636320,24.027864,138.62,138.54,21.89779285]
[1728597638515,24.027864,138.62,138.55,14.01093538]
[1728597639318,23.776884,138.61,138.55,14.01093538]
[1728597639515,0.12549,138.6,138.55,14.01093538]
[1728597641646,0.25098,138.6,138.52,14.01093538]
[1728597641848,23.776884,138.59,138.52,14.01093538]
[1728597642622,23.776884,138.59,138.53,1.44340668]
[1728597642937,23.776884,138.59,138.52,14.01093538]
[1728597643138,0.25098,138.58,138.51,43.41927457]
[1728597644921,23.776884,138.57,138.51,7.53613919]
[1728597645142,0.25098,138.56,138.48,15.4547]
[1728597645441,0.25098,138.56,138.49,30.0]
[1728597645638,23.776884,138.55,138.49,30.0]
[1728597645848,0.12549,138.54,138.49,30.0]
[1728597646014,0.12549,138.54,138.48,15.4547]
[1728597646527,23.776884,138.53,138.48,15.4547]
[1728597647024,23.776884,138.53,138.47,20.20210293]
[1728597647224,0.12549,138.52,138.47,20.20210293]
[1728597647916,0.25098,138.52,138.47,20.20210293]
[1728597648116,0.12549,138.5,138.47,7.53938534]
[1728597648323,7.47158,138.5,138.47,7.53938534]
[1728597648536,23.776884,138.49,138.42,15.3551]
[1728597648743,23.776884,138.49,138.43,37.54242237]
[1728597649122,23.776884,138.49,138.43,7.54242237]
[1728597650021,24.027864,138.5,138.43,7.54242237]
[1728597650225,0.25098,138.5,138.43,7.54242237]
[1728597653230,7.47118,138.5,138.43,7.54242237]
[1728597653850,0.12549,138.48,138.43,7.54242237]
[1728597654228,0.12549,138.48,138.44,1.44445812]
[1728597654431,23.776884,138.49,138.44,1.44445812]
[1728597654635,23.776884,138.49,138.44,23.37751049]
[1728597654843,7.2177,138.55,138.45,1.44434083]
[1728597655648,6.6171,138.56,138.45,1.44434083]
[1728597655844,7.2181,138.54,138.46,1.4442511]
[1728597656049,7.2181,138.54,138.45,1.44413231]
[1728597656227,23.902374,138.53,138.45,30.0]
[1728597656545,23.902374,138.53,138.46,1.4441464]
[1728597656729,23.902374,138.53,138.45,30.0]
[1728597656930,23.902374,138.53,138.44,21.93305237]
[1728597657142,23.902374,138.53,138.45,1.44414643]
[1728597657345,7.2177,138.55,138.45,1.44414643]
[1728597657549,6.6171,138.56,138.48,21.93305237]
[1728597657757,8.5049,138.57,138.49,1.44385514]
[1728597657935,22.1383,138.6,138.5,21.93305237]
[1728597658252,22.1383,138.6,138.51,1.44356438]
[1728597658632,22.1383,138.6,138.51,31.44356438]
[1728597658942,14.4232,138.6,138.51,30.0]
[1728597659148,0.12549,138.57,138.51,30.0]
[1728597659737,0.12549,138.57,138.52,30.0]
[1728597660734,0.12549,138.57,138.53,30.0]
[1728597661439,24.027864,138.6,138.54,1.44355087]
[1728597661846,24.027864,138.6,138.54,31.44355087]
[1728597663154,23.527864,138.6,138.54,31.44355087]
[1728597663451,7.2141,138.62,138.54,31.44355087]
[1728597664050,8.5049,138.64,138.54,53.37660324]
[1728597664440,8.5049,138.64,138.54,31.44355087]
[1728597665433,0.12549,138.61,138.54,31.44355087]
[1728597665647,23.902374,138.61,138.54,31.44355087]
[1728597668766,0.12549,138.6,138.54,30.0]
[1728597669265,23.902374,138.59,138.54,30.0]
[1728597669439,23.776884,138.58,138.54,30.0]
[1728597670265,0.12549,138.57,138.54,30.0]
[1728597671266,0.25098,138.57,138.54,30.0]
[1728597672964,0.12549,138.55,138.54,30.0]
[1728597673758,0.25098,138.55,138.5,30.0]
[1728597673965,7.46858,138.55,138.5,30.0]
[1728597674264,23.776884,138.54,138.5,30.0]
[1728597674736,0.25098,138.53,138.5,30.0]
[1728597674937,23.776884,138.52,138.5,30.0]
[1728597675962,23.776884,138.52,138.46,30.0]
[1728597676744,0.25098,138.51,138.46,30.0]
[1728597676969,0.25098,138.51,138.47,4.13852374]
[1728597677166,0.25098,138.51,138.48,30.0]
[1728597678374,0.12549,138.51,138.48,30.0]
[1728597680280,23.776884,138.52,138.48,30.0]
[1728597683455,7.2169,138.57,138.49,23.37710499]
[1728597683667,7.2169,138.57,138.5,30.0]
[1728597684757,24.027864,138.55,138.5,30.0]
[1728597685678,0.25098,138.55,138.5,30.0]